Cogmind - Beta 13 *** ADVENTURER MODE // 2024.04.09 @ 19:24:56 Player: Teromax34 Result: Self-destructed Performance ------------- Evolutions (1) 500 Regions Visited (2) 400 Robots Destroyed (25) 125 Value Destroyed (539) 539 Prototype IDs (1) 20 Alien Tech Used (0) 0 Bonus (0) 0 TOTAL SCORE: 1584 Bonus ------- None Cogmind --------- Core Integrity 355/400 Matter 285/300 Energy 250/250 System Corruption 0% Temperature Warm (147) Movement Treading (160) Location -9/Materials Parts ------- > --- POWER (1) -------- Ion Engine > --- PROPULSION (3) --- Light Treads Light Treads Light Treads > --- UTILITY (2) ------ Medium Storage Unit Light Armor Plating > --- WEAPON (3) ------- Heavy EM Pulse Gun Advanced Beam Cannon Assault Rifle > --- INVENTORY (10) --- Ion Engine Improved Heat Sink Transport Network Coupler Medium Laser Peak State ------------ > --- POWER ------------ Ion Engine > --- PROPULSION ------- Light Treads Light Treads Light Treads > --- UTILITY ---------- Medium Storage Unit Light Armor Plating > --- WEAPON ----------- Heavy EM Pulse Gun Advanced Beam Cannon Assault Rifle > --- INVENTORY -------- Ion Engine Improved Heat Sink Transport Network Coupler Medium Laser [Rating: 12] Favorites ----------- Power Ion Engine Engine Ion Engine Propulsion Light Treads Treads Light Treads Utility Medium Storage Unit Storage Medium Storage Unit Protection Light Armor Plating Weapon Assault Rifle Energy Gun Medium Laser Energy Cannon Advanced Beam Cannon Ballistic Gun Assault Rifle Build | -11 -10 -9 ------- Run | Yrd Mat Mat Slots Evolved 2 | . . 2 Power . | . . . Propulsion 1 | . . 1 Utility . | . . . Weapon 1 | . . 1 Parts Attached 12 | 6 1 5 Power 1 | 1 . . Engine 1 | 1 . . Core . | . . . Reactor . | . . . Propulsion 3 | 2 . 1 Treads 3 | 2 . 1 Leg . | . . . Wheel . | . . . Hover . | . . . Flight . | . . . Utility 3 | 1 1 1 Device . | . . . Storage 2 | 1 1 . Processor . | . . . Hackware . | . . . Protection 1 | . . 1 Artifact . | . . . Weapon 5 | 2 . 3 Energy Gun 3 | 1 . 2 Energy Cannon 1 | . . 1 Ballistic Gun 1 | 1 . . Ballistic Cannon . | . . . Launcher . | . . . Special Weapon . | . . . Impact Weapon . | . . . Slashing Weapon . | . . . Piercing Weapon . | . . . Special Melee Weapon . | . . . Unidentified Prototypes 1 | . . 1 Parts Lost . | . . . Power . | . . . Propulsion . | . . . Utility . | . . . Weapon . | . . . Highest Loss Streak . | . . . To Critical Strikes . | . . . Average Slot Usage (%) 88 | . 85 91 Engine 12 | . 14 11 Treads 28 | . 28 28 Storage 12 | . 14 11 Protection 3 | . . 7 Energy Gun 17 | . 14 20 Ballistic Gun 12 | . 14 11 Naked Turns . | . . . Heaviest Build 27 | 14 19 27 Greatest Support 60 | 40 40 60 Greatest Overweight (x) 2 | 2 . . Average Overweight (x) . | . . . Largest Inventory Capacity 10 | 8 10 10 Average Capacity 9 | 6 9 10 Most Carried 4 | 1 3 4 Average Carried 2 | . 1 2 Final Capacity 10 | 8 10 10 Final Carried 4 | 1 2 4 Class Distribution -------------------- 53% | Mutant 32% | Tank 13% | Gunner Dominant Class ---------------- Mutant | -10/Materials Tank | -9/Materials Resources | -11 -10 -9 ----------- Run | Yrd Mat Mat Matter Collected 419 | 248 58 113 Remotely . | . . . Salvage Created 733 | . 161 572 Parts 48 | . 14 34 Haulers Intercepted 1 | . . 1 Recyclers Shooed . | . . . Parts Field Recycled . | . . . Retrieved Matter . | . . . Parts Self-Destructed . | . . . Prevented . | . . . Kills | -11 -10 -9 ------- Run | Yrd Mat Mat Combat Hostiles Destroyed 22 | . 6 16 Guns 17 | . 6 11 Cannons 3 | . . 3 AOE 2 | . . 2 Classes Destroyed 5 | . 3 2 Hauler 1 | . . 1 Watcher 2 | . 1 1 Swarmer 12 | . 4 8 Grunt 8 | . 2 6 Sentry 2 | . . 2 Best Kill Streak 8 | . 4 8 Combat Bots Only 8 | . 4 8 Max Kills in Single Turn 2 | . 1 2 Gunslinging 1 | . . 1 Exploded 2 | . . 2 Melee . | . . . Uniques/NPCs Destroyed . | . . . Combat | -11 -10 -9 -------- Run | Yrd Mat Mat Hostile Shots Fired 101 | . 40 61 Missed 33 | . 7 26 Damage Taken 492 | . 242 250 Core 88 | . 43 45 Absorbed by Shields . | . . . Ignored by Resistances 153 | . 72 81 Core Remaining (%) 91 | 100 82 . Volleys Fired 38 | . 12 26 Largest 3 | . 2 3 Hottest 133 | . 70 133 Shots Fired 101 | . 24 77 Gun 96 | . 24 72 Cannon 5 | . . 5 Launcher . | . . . Special . | . . . Kinetic 38 | . 12 26 Thermal 37 | . 12 25 Explosive . | . . . Electromagnetic 26 | . . 26 Robot Hit Streak 11 | . 9 11 Robot Miss Streak 4 | . 2 4 Penetration Max . | . . . Secondary Targets 5 | . 2 3 Max Gunslinging Chain 2 | . 1 2 Shots Hit Robots 61 | . 17 44 Core Hits 33 | . 10 23 Critical Kills . | . . . Critical Parts Destroyed . | . . . Critical Strikes 3 | . 1 2 Burn 2 | . 1 1 Corrupt 1 | . . 1 Melee Attacks . | . . . Impact . | . . . Slashing . | . . . Piercing . | . . . Sneak Attacks . | . . . Combat Hostiles . | . . . Follow-up Attacks . | . . . Damage Inflicted 955 | . 212 743 Guns 778 | . 212 566 Cannons 62 | . . 62 Explosions 115 | . . 115 Melee . | . . . Ramming . | . . . Kinetic 281 | . 98 183 Thermal 455 | . 114 341 Explosive . | . . . Electromagnetic 219 | . . 219 Impact . | . . . Slashing . | . . . Piercing . | . . . Highest Corruption . | . . . Average Corruption . | . . . Corruption Purged . | . . . Corruption Blocked . | . . . Overload Shots . | . . . Overflow Damage . | . . . Projectiles . | . . . Explosions . | . . . Melee . | . . . Knockbacks . | . . . Impact . | . . . Kinetic . | . . . Secondary . | . . . Self-Inflicted Damage . | . . . Shots . | . . . Rammed . | . . . Targets Rammed . | . . . Kicked . | . . . Crushed . | . . . Highest Temperature 328 | . 63 328 Average Temperature 108 | . 27 130 Received Heat Transfer 147 | . 69 78 Effects 1 | . . 1 Energy Bleed 1 | . . 1 Siege Activations . | . . . Robots Corrupted . | . . . Combat Hostiles . | . . . Parts Fried 1 | . . 1 Impact Corruptions . | . . . Robots Melted . | . . . Combat Hostiles . | . . . Parts Melted 3 | . 1 2 Heat Transferred 1273 | . 407 866 Parts Sabotaged . | . . . Parts Stolen . | . . . Parts Stripped . | . . . Power Chain Reactions 3 | . . 3 Alert | -11 -10 -9 ------- Run | Yrd Mat Mat Peak Influence 342 | . 90 342 Initial 32 | . . 32 Average 71 | . 37 114 Maximum Alert Level 1 | . . 1 Low Security (%) 92 | 100 100 84 Level 1 7 | . . 15 Level 2 . | . . . Level 3 . | . . . Level 4 . | . . . Level 5 . | . . . High Security . | . . . Max Security . | . . . Squads Dispatched 3 | . 1 2 Investigation 2 | . 1 1 Extermination . | . . . Reinforcement 1 | . . 1 Assault . | . . . Garrison . | . . . Intercept . | . . . Searches Triggered . | . . . Construction Impeded . | . . . Haulers Reinforced . | . . . Active Scanning Responses . | . . . Cargo Convoy Interrupts . | . . . Stealth | -11 -10 -9 --------- Run | Yrd Mat Mat Distress Signals 3 | . . 3 Communications Jammed . | . . . Distress Signals . | . . . Times Spotted 32 | . 9 23 Peak Tracking Total 6 | . 4 6 Tactical Retreats 3 | . . 3 Traps | -11 -10 -9 ------- Run | Yrd Mat Mat Traps Triggered 1 | . 1 . Indirectly . | . . . Trap Hack Attempts . | . . . Triggered . | . . . Disarmed . | . . . Reprogrammed 6 | . . 6 Reused . | . . . Traps Extracted . | . . . Installed . | . . . Triggered . | . . . Machines | -11 -10 -9 ---------- Run | Yrd Mat Mat Machines Disabled 1 | . . 1 Max in Single Turn 1 | . . 1 Machines Repaired . | . . . Machines Dismantled . | . . . Machines Sabotaged . | . . . Overloaded Fab Kills . | . . . Hacking | -11 -10 -9 --------- Run | Yrd Mat Mat Machines Accessed 4 | . 1 3 Terminals 4 | . 1 3 Fabricators . | . . . Repair Stations . | . . . Recycling Units . | . . . Scanalyzers . | . . . Garrison Access . | . . . Total Hacks 6 | . 1 5 Successful 4 | . . 4 Failed 2 | . 1 1 Catastrophic 1 | . 1 . Database Lockouts . | . . . Manual . | . . . Terminals 6 | . 1 5 Fabricators . | . . . Repair Stations . | . . . Recycling Units . | . . . Scanalyzers . | . . . Garrison Access . | . . . Terminal Hacks 4 | . . 4 Record 3 | . . 3 Reprogram Traps 1 | . . 1 Fabricator Hacks . | . . . Repair Station Hacks . | . . . Recycling Unit Hacks . | . . . Scanalyzer . | . . . Garrison Access Hacks . | . . . Unauthorized Hacks . | . . . Terminals . | . . . Fabricators . | . . . Repair Stations . | . . . Recycling Units . | . . . Scanalyzers . | . . . Garrison Access . | . . . Data Cores Recovered . | . . . Used . | . . . Hacking Detections 3 | . 1 2 Full Trace Events 1 | . . 1 Feedback Events . | . . . Feedback Blocked . | . . . Robot Schematics Acquired . | . . . Robots Built . | . . . Authchips . | . . . Time . | . . . Total Robot Build Rating . | . . . Part Schematics Acquired . | . . . Parts Built . | . . . Authchips . | . . . Time . | . . . Total Part Build Rating . | . . . Parts Repaired . | . . . Time . | . . . Parts Recycled . | . . . Recycled Matter . | . . . Retrieved Matter . | . . . Retrieved Components . | . . . Parts Scanalyzed . | . . . Part Schematics Acquired . | . . . Parts Damaged . | . . . Bothacking | -11 -10 -9 ------------ Run | Yrd Mat Mat Used RIF Installer . | . . . Robots Hacked . | . . . Non-combat . | . . . Combat . | . . . Robot Hacks Applied . | . . . Relay Couplers Released . | . . . Fabnet Peak Effective % . | . . . Robots Rewired . | . . . Allies Hacked . | . . . Hacks Repelled . | . . . Allies | -11 -10 -9 -------- Run | Yrd Mat Mat Total Allies . | . . . Largest Group . | . . . Highest-Rated Group . | . . . Highest-Rated Ally . | . . . Total Orders . | . . . Ally Attacks . | . . . Total Damage . | . . . Kills . | . . . Allies Corrupted . | . . . Allies Melted . | . . . Intel | -11 -10 -9 ------- Run | Yrd Mat Mat Robot Analysis Total . | . . . Derelict Logs Recovered . | . . . Drone Launches . | . . . Drone Recoveries . | . . . Exploration | -11 -10 -9 ------------- Run | Yrd Mat Mat Turns Passed 1089 | 82 490 517 Spaces Moved 594 | 55 281 258 Core 22 | 22 . . Treads 572 | 33 281 258 Legs . | . . . Wheels . | . . . Hover . | . . . Flight . | . . . Fastest Speed 50 | 50 160 160 Average Speed 157 | 132 160 160 Slowest Speed 160 | 160 160 160 Overloaded Moves . | . . . Propulsion Burnouts . | . . . Robots Hopped . | . . . Cave-ins Triggered . | . . . Exploration Rate (%) 23 | 4 31 34 Regions Visited 2 Branch Regions . Pre-discovered Areas . | . . . Known Exits Taken . | . . . Unknown Exits Taken 2 | 1 1 . Scrap Searched . | . . . Spaces Dug . | . . . Terrain Destroyed 11 | . . 11 Melee . | . . . Projectile . | . . . AOE 11 | . . 11 Terrain Rammed . | . . . Walls Destroyed . | . . . Machines Disabled . | . . . Actions | -11 -10 -9 --------- Run | Yrd Mat Mat Total 661 | 61 299 301 Wait 11 | . 1 10 Move 592 | 54 280 258 Hop . | . . . Pick Up 6 | 1 3 2 Fast Attach 9 | 6 . 3 Attach 1 | . 1 . Detach . | . . . Swap 2 | . . 2 Drop 2 | . 2 . Fire 38 | . 12 26 Melee . | . . . Ram . | . . . Kick . | . . . Crush . | . . . Escape Stasis . | . . . Rewire . | . . . Trap . | . . . Miscellaneous . | . . . Route ------- -11/Scrapyard -10/Materials -9/Materials History --------- Turn | Location | Event 25 | -11/Scrapyard | Discovered new exit (range 15) 83 | -11/Scrapyard | Entered Materials 333 | -10/Materials | Build established: Mutant 424 | -10/Materials | Discovered new exit (range 16) 573 | -10/Materials | Entered another Materials area 573 | -9/Materials | Evolved 2 slots: Propulsion x1, Weapon x1 998 | -9/Materials | Destroyed 8 combat bots 1037 | -9/Materials | Build established: Tank 1090 | -9/Materials | Self-destructed Last Messages --------------- U-05 Engineer builds a Wall. U-05 Engineer lays Concrete. G-34 Mercenary destroyed. U-05 Engineer lays Concrete. Chain reaction triggered in Ion Engine. G-34 Mercenary destroyed. U-05 Engineer lays Concrete. S-10 Pest destroyed. U-05 Engineer lays Concrete. U-05 Engineer builds a Wall. W-16 Scout distress signal alerts nearby ally. U-05 Engineer lays Concrete. W-16 Scout destroyed. U-05 Engineer lays Concrete. ALERT: Hostiles spotted, dispatching reinforcements to Terminal M004. U-05 Engineer lays Concrete. Critical hit (Destroy). U-05 Engineer builds a Wall. U-05 Engineer lays Concrete. Map ----- +----------------------------------------------------+ | ?????????????????????????????????????????????????? | | ?????????????????????????????????????????????????? | | ?????????????????????????????????????????????????? | | ?????????????????????????????????????????????????? | | ?????????????????????????????????????????????????? | | ?????????????????????????????????????????????????? | | ?????????????????????????????????????????????????? | | ?????????????????????????????????????????????????? | | ?????????????????????????????????????????????????? | | ?????????????????????????????????????????????????? | | ?????????????????????????????????????????????????? | | ?????????????????????????????????????????????????? | | ?????????????????????????????????????????????????? | | ?????????????????????????????????????????????????? | | ?????????????????????????????????????????????????? | | ?????????????????????????????????????????????????? | | ?????????????????????????????????????????????????? | | ?????????????????????????????????????????????????? | | ?????????????????????????????????????????????????? | | ??????????????????????#######????????????????????? | | ???????????????????????"T" ?????????????????????? | | ??????????????????????? ?????????????????????? | | ???????????????????????? ??????????????????????? | | ???????????###########?? ??????????????????????? | | ???????????# """ ####/##?????????????????????? | | ???????????# "T" # @ ######+### ??????????? | | ???????????# """ # ^ ??????????? | | ??????????## """ + !s ^ ??????????? | | ??????????# " # %=s ??????????? | | ??????????## " # !%= ##+####### ?????????? | | ???????????# % ## [ ##?????????????????????? | | ???????????# ##! #??????????????????????? | | ???????????###""#""####u[a#??????????????????????? | | ?????????????#######??;u [#??????????????????????? | | ?????????????????????## u%#??????????????????????? | | ??????????????????##??# =*#??????????????????????? | | ?????????????????##! ?# #??????????????????????? | | ?????????????????#! ## #######????????????????? | | ?????????????????#! #????????????????? | | ?????????????????#! *%=[ #????????????????? | | ?????????????????#! =[== #????????????????? | | ?????????????????##! ###%#### #????????????????? | | ??????????????????###??#[#??? #????????????????? | | ???????????????????????#%#???? #????????????????? | | ???????????????????????#=#????? #????????????????? | | ???????????????????????#%#??????#????????????????? | | ???????????????????????#=#??????#????????????????? | | ???????????????????????#[#???? #????????????????? | | ???????????????????????#%#???? #????????????????? | | ??????????????????######+####? #????????????????? | +----------------------------------------------------+ Best States ------------- Heat Dissipation 28 Energy Generation 10 Energy Capacity 250 Matter Stores 300 Matter Capacity 300 Sight Range 16 Terrain Scan Density 10 Armor Coverage 150 Resistance: KI 20 Resistance: TH 20 Resistance: EX 20 Resistance: EM 20 Resistance: I 20 Resistance: S 20 Resistance: P 20 Evasion (%) 40 Recoil Reduction 3 Offensive Hacking 10 Item Schematics ----------------- None Robot Schematics ------------------ None Fabricated ------------ Nothing Alien Tech Used ----------------- None Achievements -------------- None Challenges ------------ None Game ------ Seed TargetShrapnelCasing Manual? 0 Play Time 00:12:04 Cumulative 1.9 hours Start 2024.04.09 @ 19:11:56 End 2024.04.09 @ 19:24:56 Sessions 1 Manual Loads 0 Difficulty Adventurer Special Mode None Game No. 6 Rogue 0 Adventurer 6 Explorer 0 Win Type - Total 0 Types 0/0/0/0/0/0/0/0/0 Lore% 3 Gallery% 7 Achievement% 7 Wizard Run 0 Options --------- Layout 1 ASCII 0 Keyboard 0 Movement Arrows Keybinds 0 Fullscreen 1 Font 20/SmallcapsGlow Map View 50x35 Zoom Use 0% Tactical HUD 0 Map Filters NONE Filters NONE Steam 1 RUN: 62c979e2-fc87-45ae-98b5-5a5f36a9d106